Cogmind - Beta 17 @@@ ROGUE MODE // 2026.07.17 @ 17:29:50 Player: Marienkos Result: Destroyed by G-47 Trooper with Particle Gun Performance ------------- Evolutions (2) 1000 Regions Visited (4) 800 Robots Destroyed (35) 175 Value Destroyed (902) 902 Prototype IDs (1) 20 Alien Tech Used (0) 0 Bonus (0) 0 TOTAL SCORE: 2897 Bonus ------- None Cogmind --------- Core Integrity 0/550 Matter 247/300 Energy 71/265 System Corruption 2% Temperature Cool (9) Movement Rolling (100) Location -8/Materials Parts ------- > --- POWER (1) -------- Improved Ion Engine > --- PROPULSION (3) --- Compact Wheel Compact Wheel > --- UTILITY (5) ------ Visual Processing Unit Transport Network Coupler Advanced Targeting Computer Advanced Targeting Computer Improved Utility Shielding > --- WEAPON (2) ------- (None) > --- INVENTORY (5) ---- (None) Peak State ------------ > --- POWER ------------ Heavy Ion Engine > --- PROPULSION ------- Airjet Airjet Airjet > --- UTILITY ---------- Structural Scanner Visual Processing Unit Advanced Targeting Computer Advanced Targeting Computer ECM Suite > --- WEAPON ----------- Particle Gun Heavy Assault Rifle > --- INVENTORY -------- Light Nuclear Core Transport Network Coupler Improved Utility Shielding Heavy Particle Cannon Heavy Assault Rifle [Rating: 27] Favorites ----------- Power Heavy Ion Engine Engine Heavy Ion Engine Power Core Light Nuclear Core Propulsion Hover Unit Wheel Compact Wheel Hover Unit Hover Unit Utility Structural Scanner Device Structural Scanner Processor Visual Processing Unit Protection Backup Plating III Weapon Light Assault Rifle Energy Gun EM Pulse Gun Energy Cannon Heavy Particle Cannon Ballistic Gun Light Assault Rifle Launcher Rocket Launcher Build | -11 -10 -10 -9 -8 ------- Run | Yrd Mat Min Mat Mat Slots Evolved 4 | . . . 2 2 Power . | . . . . . Propulsion 1 | . . . 1 . Utility 3 | . . . 1 2 Weapon . | . . . . . Parts Attached 40 | 5 8 1 6 20 Power 6 | 1 1 . . 4 Engine 5 | 1 1 . . 3 Core 1 | . . . . 1 Reactor . | . . . . . Propulsion 16 | 2 5 . 2 7 Treads . | . . . . . Leg . | . . . . . Wheel 6 | 2 . . . 4 Hover 10 | . 5 . 2 3 Flight . | . . . . . Utility 11 | . 2 . 2 7 Device 2 | . 1 . 1 . Storage . | . . . . . Processor 7 | . . . 1 6 Hackware . | . . . . . Protection 2 | . 1 . . 1 Artifact . | . . . . . Weapon 7 | 2 . 1 2 2 Energy Gun 2 | 1 . . 1 . Energy Cannon 1 | . . . . 1 Ballistic Gun 3 | 1 . . 1 1 Ballistic Cannon . | . . . . . Launcher 1 | . . 1 . . Special Weapon . | . . . . . Impact Weapon . | . . . . . Slashing Weapon . | . . . . . Piercing Weapon . | . . . . . Special Melee Weapon . | . . . . . Unidentified Prototypes 1 | . 1 . . . Parts Lost 22 | . 2 . 5 15 Power 2 | . . . . 2 Propulsion 10 | . 1 . 2 7 Utility 3 | . . . 1 2 Weapon 7 | . 1 . 2 4 Highest Loss Streak 13 | . 1 . 2 13 To Critical Strikes . | . . . . . Average Backups 3 | 1 4 4 3 3 Power 1 | . 1 1 1 1 Propulsion 1 | . 2 3 2 . Utility . | . . . . 1 Weapon . | . 1 . . 1 Tool/Special . | . . . . . Unused Backups 4 | . 1 . . 3 Power 2 | . . . . 2 Propulsion . | . . . . . Utility 1 | . . . . 1 Weapon 1 | . 1 . . . Tool/Special . | . . . . . Average Slot Usage (%) 86 | . 82 99 90 76 Engine 11 | . 13 14 11 6 Wheel 3 | . 3 . 1 6 Hover 21 | . 23 28 28 9 Device 12 | . 5 14 19 12 Processor 7 | . . . 1 26 Protection 7 | . 7 14 8 . Energy Gun 5 | . 13 . . 6 Ballistic Gun 11 | . 14 14 14 6 Launcher 4 | . . 13 4 . Peak Build Rating 27 | 5 11 12 14 27 Average Rating 12 | 4 7 11 12 17 On Entrance 8 | . 5 10 12 13 Avg Prop Armor Cover (%) . | . . . . . Naked Turns . | . . . . . Heaviest Build 18 | 8 14 16 18 17 Greatest Support 42 | 26 26 12 26 42 Greatest Overweight (x) 4 | . 2 1 1 4 Average Overweight (x) . | . . . . . Largest Inventory Capacity 5 | 5 5 5 5 5 Average Capacity 5 | 5 5 5 5 5 Most Carried 5 | 2 5 5 5 5 Average Carried 3 | 1 4 4 3 3 Final Capacity 5 | 5 5 5 5 5 Final Carried 5 | 2 5 4 5 . Class Distribution -------------------- 65% | Mutant 32% | Infiltrator-Mutant Dominant Class ---------------- Mutant | -10/Materials Mutant | -10/Mines Infiltrator-Mutant | -9/Materials Infiltrator-Mutant | -8/Materials Resources | -11 -10 -10 -9 -8 ----------- Run | Yrd Mat Min Mat Mat Matter Collected 842 | 191 62 125 247 217 Remotely . | . . . . . Salvage Created 944 | . 120 45 366 413 Parts 67 | . 8 3 28 28 Haulers Intercepted . | . . . . . Recyclers Shooed 1 | . . . . 1 Parts Field Recycled . | . . . . . Retrieved Matter . | . . . . . Parts Self-Destructed . | . . . . . Prevented . | . . . . . Parts Restored . | . . . . . Kills | -11 -10 -10 -9 -8 ------- Run | Yrd Mat Min Mat Mat Combat Hostiles Destroyed 23 | . 3 1 12 7 Guns 15 | . 1 . 8 6 Cannons 1 | . . . . 1 AOE 7 | . 2 1 4 . Classes Destroyed 8 | . 4 1 2 1 Worker 4 | . . . 1 3 Builder 2 | . 1 . . 1 Recycler 1 | . . . . 1 Operator 2 | . 1 . . 1 Watcher 3 | . 2 . 1 . Swarmer 7 | . 3 . 4 . Grunt 12 | . . 1 6 5 Sentry 4 | . . . 2 2 Best Kill Streak 9 | . 3 1 5 9 Combat Bots Only 5 | . 3 1 5 3 Max Kills in Single Turn 6 | . 2 1 2 6 Gunslinging . | . . . . . Exploded 2 | . 2 1 2 . Melee . | . . . . . Uniques/NPCs Destroyed . | . . . . . Combat | -11 -10 -10 -9 -8 -------- Run | Yrd Mat Min Mat Mat Hostile Shots Fired 233 | . 42 2 48 141 Missed 78 | . 15 1 19 43 Hits 155 | . 27 1 29 98 Projectile 155 | . 27 1 29 98 Critical Strikes 5 | . . . . 5 Damage Taken 2418 | . 289 69 461 1599 Core 799 | . 99 15 125 560 Absorbed by Shields . | . . . . . Regen/Repaired (Parts) 59 | . . . 49 10 Core Remaining (%) 74 | 100 . 54 68 . Volleys Fired 104 | . 20 1 38 45 Largest 2 | . 2 2 2 2 Hottest 98 | . 60 53 53 98 Shots Fired 162 | . 38 2 51 71 Gun 146 | . 38 1 45 62 Cannon 9 | . . . . 9 Launcher 7 | . . 1 6 . Special . | . . . . . Kinetic 94 | . 20 1 45 28 Thermal 43 | . . . . 43 Explosive 7 | . . 1 6 . Electromagnetic 18 | . 18 . . . Robot Hit Streak 10 | . 9 1 10 8 Robot Miss Streak 6 | . 6 1 4 3 Penetration Max . | . . . . . Secondary Targets . | . . . . . Shots Hit Robots 110 | . 23 1 37 49 Core Hits 54 | . 9 1 21 23 Critical Kills . | . . . . . Critical Parts Destroyed . | . . . . . Critical Strikes . | . . . . . Melee Attacks . | . . . . . Impact . | . . . . . Slashing . | . . . . . Piercing . | . . . . . Sneak Attacks . | . . . . . Combat Hostiles . | . . . . . Follow-up Attacks . | . . . . . Damage Inflicted 2616 | . 432 40 734 1410 Guns 1412 | . 314 7 467 624 Cannons 200 | . . . . 200 Explosions 975 | . 104 33 267 571 Melee . | . . . . . Ramming 29 | . 14 . . 15 Kinetic 854 | . 104 7 467 276 Thermal 1223 | . 104 . . 1119 Explosive 300 | . . 33 267 . Electromagnetic 210 | . 210 . . . Impact . | . . . . . Slashing . | . . . . . Piercing . | . . . . . Highest Corruption 2 | . 2 2 1 2 Average Corruption 1 | . 2 2 1 2 Corruption Purged . | . . . . . Corruption Blocked . | . . . . . Effects 17 | . 4 4 7 2 Message Errors 3 | . 2 1 . . Matter Fused 5 | . 1 2 1 1 Heat Flow Errors 1 | . . . . 1 Energy Discharges 1 | . . . 1 . Data Loss (minor) 1 | . . . 1 . Data Loss (major) 3 | . . 1 2 . Misfires 1 | . . . 1 . Alerts 2 | . 1 . 1 . Overload Shots . | . . . . . Overflow Damage 137 | . 10 . 11 116 Projectiles . | . . . . . Explosions 137 | . 10 . 11 116 Melee . | . . . . . Knockbacks . | . . . . . Impact . | . . . . . Kinetic . | . . . . . Secondary . | . . . . . Self-Inflicted Damage 246 | . 33 25 119 69 Shots 7 | . 1 1 4 1 Rammed 3 | . 1 . . 2 Targets Rammed 3 | . 1 . . 2 Kicked . | . . . . . Crushed . | . . . . . Highest Temperature 433 | . 104 20 28 433 Average Temperature 107 | . 38 12 11 155 Received Heat Transfer 1149 | . 84 9 174 882 Effects 4 | . . . . 4 Energy Bleed 1 | . . . . 1 Interference 3 | . . . . 3 Siege Activations . | . . . . . Martial Activations . | . . . . . Shielding Activations . | . . . . . Robots Disrupted . | . . . . . Combat Hostiles . | . . . . . Robots Corrupted 1 | . 1 . . . Combat Hostiles . | . . . . . Parts Fried 2 | . 2 . . . Impact Corruptions . | . . . . . Robots Melted . | . . . . . Combat Hostiles . | . . . . . Parts Melted 3 | . . . . 3 Heat Transferred 1660 | . 100 . . 1560 Parts Sabotaged . | . . . . . Parts Stolen . | . . . . . Parts Stripped . | . . . . . Power Chain Reactions 2 | . 2 . . . Alert | -11 -10 -10 -9 -8 ------- Run | Yrd Mat Min Mat Mat Maximum Alert Level . | . . . . . Low Security (%) 100 | 100 100 100 100 100 Level 1 . | . . . . . Level 2 . | . . . . . Level 3 . | . . . . . Level 4 . | . . . . . Level 5 . | . . . . . High Security . | . . . . . Max Security . | . . . . . Peak Influence 193 | . 83 43 193 113 Initial 76 | . . 5 13 76 Average 40 | . 18 1 104 48 Influence Increases 999 | . 180 43 403 373 Destroy 0b10 Robot/C 480 | . 60 20 260 140 Destroy 0b10 Robot/NC 60 | . 20 . 10 30 Destroy Leader 136 | . 14 10 72 40 Allied During Kill 4 | . . 4 . . Successful Hack 5 | . 5 . . . Disable Machine 75 | . 15 . 15 45 Destroy Structure 89 | . 6 9 46 28 Partial Spotted 30 | . 30 . . . Lose Combat Pursuer 120 | . 30 . . 90 Influence Decreases 926 | . 165 23 255 483 Entered New Map 139 | . . 10 22 107 Time Decay 557 | . 155 13 163 226 Lost Part 210 | . 10 . 50 150 Lost Ally 20 | . . . 20 . Squads Dispatched 6 | . 2 . 3 1 Investigation 3 | . 1 . 2 . Extermination . | . . . . . Reinforcement 3 | . 1 . 1 1 Assault . | . . . . . Garrison . | . . . . . Intercept . | . . . . . Searches Triggered . | . . . . . Construction Impeded . | . . . . . Haulers Reinforced . | . . . . . Active Scanning Responses . | . . . . . Cargo Convoy Interrupts . | . . . . . Stealth | -11 -10 -10 -9 -8 --------- Run | Yrd Mat Min Mat Mat Distress Signals 4 | . 2 . . 2 Communications Jammed . | . . . . . Distress Signals . | . . . . . Times Spotted 56 | . 17 2 17 20 Peak Tracking Total 6 | . 5 1 3 6 Tactical Retreats 6 | . 2 . . 4 ECM-based Alert Blocks 2 | . . . . 2 Traps | -11 -10 -10 -9 -8 ------- Run | Yrd Mat Min Mat Mat Traps Triggered 3 | . 2 . . 1 Indirectly . | . . . . . Trap Hack Attempts . | . . . . . Triggered . | . . . . . Disarmed . | . . . . . Reprogrammed . | . . . . . Reused . | . . . . . Traps Extracted . | . . . . . Installed . | . . . . . Triggered . | . . . . . Machines | -11 -10 -10 -9 -8 ---------- Run | Yrd Mat Min Mat Mat Machines Disabled 5 | . 1 . 1 3 Max in Single Turn 3 | . 1 . 1 3 Machines Repaired . | . . . . . Machines Dismantled . | . . . . . Machines Sabotaged . | . . . . . Overloaded Fab Kills . | . . . . . Hacking | -11 -10 -10 -9 -8 --------- Run | Yrd Mat Min Mat Mat Machines Accessed 9 | . 3 1 3 2 Terminals 6 | . 3 . 2 1 Fabricators . | . . . . . Repair Stations 2 | . . . 1 1 Recycling Units . | . . . . . Scanalyzers . | . . . . . Garrison Access . | . . . . . Total Hacks 19 | . 5 1 9 4 Successful 10 | . 2 1 5 2 Failed 9 | . 3 . 4 2 Catastrophic 2 | . 1 . . 1 Database Lockouts . | . . . . . Manual 6 | . 1 . 3 2 Terminals 10 | . 5 . 4 1 Fabricators . | . . . . . Repair Stations 8 | . . . 5 3 Recycling Units . | . . . . . Scanalyzers . | . . . . . Garrison Access . | . . . . . Terminal Hacks 4 | . 2 1 1 . Open Door 1 | . . 1 . . Alert Level 1 | . 1 . . . Recall Investigation 1 | . . . 1 . Zone Layout 1 | . 1 . . . Fabricator Hacks . | . . . . . Repair Station Hacks 6 | . . . 4 2 Scan Component 3 | . . . 2 1 Repair 3 | . . . 2 1 Recycling Unit Hacks . | . . . . . Scanalyzer . | . . . . . Garrison Access Hacks . | . . . . . Unauthorized Hacks . | . . . . . Terminals . | . . . . . Fabricators . | . . . . . Repair Stations . | . . . . . Recycling Units . | . . . . . Scanalyzers . | . . . . . Garrison Access . | . . . . . Data Cores Recovered 1 | . 1 . . . Used . | . . . . . Hacking Detections 7 | . 3 . 2 2 Full Trace Events 2 | . . . 2 . Feedback Events 1 | . . . 1 . Corruption 1 | . . . 1 . Feedback Blocked . | . . . . . Robot Schematics Acquired . | . . . . . Robots Built . | . . . . . Authchips . | . . . . . Time . | . . . . . Total Robot Build Rating . | . . . . . Part Schematics Acquired . | . . . . . Parts Built . | . . . . . Authchips . | . . . . . Time . | . . . . . Total Part Build Rating . | . . . . . Part Studies Acquired . | . . . . . Parts Repaired 3 | . . . 2 1 Time 78 | . . . 52 26 Parts Recycled . | . . . . . Recycled Matter . | . . . . . Retrieved Matter . | . . . . . Retrieved Components . | . . . . . Parts Scanalyzed . | . . . . . Part Schematics Acquired . | . . . . . Parts Damaged . | . . . . . Bothacking | -11 -10 -10 -9 -8 ------------ Run | Yrd Mat Min Mat Mat Used RIF Installer . | . . . . . Robots Hacked . | . . . . . Non-combat . | . . . . . Combat . | . . . . . Robot Hacks Applied . | . . . . . Relay Couplers Released . | . . . . . Fabnet Peak Effective % . | . . . . . Robots Rewired . | . . . . . Allies Hacked . | . . . . . Hacks Repelled . | . . . . . Allies | -11 -10 -10 -9 -8 -------- Run | Yrd Mat Min Mat Mat Total Allies 2 | . . 2 . . Largest Group 2 | . . 2 2 . Highest-Rated Group 50 | . . 50 50 . Highest-Rated Ally 31 | . . 31 31 . Total Orders . | . . . . . Ally Attacks 21 | . . . 21 . Total Damage 363 | . . . 363 . Kills 1 | . . . 1 . Allies Corrupted . | . . . . . Allies Melted . | . . . . . Intel | -11 -10 -10 -9 -8 ------- Run | Yrd Mat Min Mat Mat Active Infowar (turns) 1482 | . 193 403 393 493 Optics 529 | . . . 70 459 Structural 1320 | . 193 403 393 331 T.N.C. 8 | . . . . 8 ECM 630 | . . . 307 323 Robot Analysis Total . | . . . . . Derelict Logs Recovered . | . . . . . Drone Launches . | . . . . . Drone Recoveries . | . . . . . Exploration | -11 -10 -10 -9 -8 ------------- Run | Yrd Mat Min Mat Mat Turns Passed 1832 | 74 469 403 393 493 Spaces Moved 1733 | 74 505 350 413 391 Core 119 | 6 2 . . 111 Treads . | . . . . . Legs . | . . . . . Wheels 246 | 68 49 . 16 113 Hover 1368 | . 454 350 397 167 Flight . | . . . . . Fastest Speed 50 | 50 56 56 52 50 Average Speed 75 | 87 67 114 53 73 Slowest Speed 250 | 100 150 116 116 250 Overloaded Moves . | . . . . . Propulsion Burnouts . | . . . . . Robots Hopped . | . . . . . Potential Cave-ins . | . . . . . Cave-ins Triggered . | . . . . . Exploration Rate (%) 33 | 3 55 49 35 24 Regions Visited 4 Branch Regions 1 Pre-discovered Areas . | . . . . . Known Exits Taken . | . . . . . Unknown Exits Taken 4 | 1 1 1 1 . Scrap Searched 2 | . . 2 . . Spaces Dug . | . . . . . Terrain Destroyed 98 | . 6 9 57 26 Melee . | . . . . . Projectile . | . . . . . AOE 98 | . 6 9 57 26 Terrain Rammed . | . . . . . Walls Destroyed . | . . . . . Machines Disabled . | . . . . . Actions | -11 -10 -10 -9 -8 --------- Run | Yrd Mat Min Mat Mat Total 2085 | 80 599 351 532 523 Wait 171 | . 58 . 68 45 Move 1729 | 73 504 349 412 391 Hop . | . . . . . Pick Up 12 | 2 2 . 3 5 Fast Attach 31 | 5 6 . 6 14 Attach 10 | . . 1 3 6 Detach 3 | . 2 . . 1 Swap 8 | . 2 . 1 5 Drop 14 | . 4 . 1 9 Fire 104 | . 20 1 38 45 Melee . | . . . . . Ram 3 | . 1 . . 2 Kick . | . . . . . Crush . | . . . . . Escape Stasis . | . . . . . Rewire . | . . . . . Trap . | . . . . . Miscellaneous . | . . . . . Route ------- -11/Scrapyard -10/Materials -10/Mines (discovered 2 exits: *Mat / [Sub]) -9/Materials -8/Materials History --------- Turn | Location | Event 30 | -11/Scrapyard | Discovered new exit (range 14) 75 | -11/Scrapyard | Entered Materials 333 | -10/Materials | Build established: Mutant 434 | -10/Materials | Discovered new exit (range 9) 544 | -10/Materials | Entered Mines 548 | -10/Mines | Joined a pair of Derelicts in attacking an 0b10 outpost 658 | -10/Mines | Received a Rocket Launcher from a helpful Derelict 679 | -10/Mines | Discovered new exit (range 8) 695 | -10/Mines | Met a Derelict who couldn't figure out how to use a Trap Extractor 927 | -10/Mines | Discovered new exit (range 7) 947 | -10/Mines | Entered Materials 947 | -9/Materials | Accompanied by 2 allies 947 | -9/Materials | Evolved 2 slots: Propulsion x1, Utility x1 952 | -9/Materials | Led the pair of lost Derelicts to an unsafe place 1186 | -9/Materials | Repaired Hover Unit 1213 | -9/Materials | Repaired Hover Unit 1287 | -9/Materials | Discovered new exit (range 10) 1340 | -9/Materials | Entered another Materials area 1340 | -8/Materials | Evolved 2 slots: Utility x2 1381 | -8/Materials | Build established: Infiltrator-Mutant 1545 | -8/Materials | Repaired ECM Suite 1682 | -8/Materials | Core integrity fell below 50% 1721 | -8/Materials | Core integrity fell below 20% 1749 | -8/Materials | Lost 13 parts (2p6n2u3w) 1833 | -8/Materials | Destroyed by G-47 Trooper with Particle Gun Last Messages --------------- K-01 Serf collects debris. U-05 Engineer lays Concrete. K-01 Serf collects debris. U-05 Engineer lays Concrete. K-01 Serf collects debris. U-05 Engineer lays Concrete. K-01 Serf collects debris. U-05 Engineer lays Concrete. K-01 Serf collects debris. U-05 Engineer lays Concrete. K-01 Serf collects debris. U-05 Engineer lays Concrete. System corrupted: Heat flow error (+238). Overheating: Energy bleed (-21). System corrupted: Matter fused (-7). Hvy. Particle Cannon destroyed. Acquired 51 matter. Acquired Com. Wheel. Acquired Imp. Utility Shielding. Acquired Imp. Ion Engine. Map ----- +----------------------------------------------------+ | ????## ## ##??## ##???????????????? | | ????## ## ##??## ##???????????????? | | ????## ## ##??## ##???????????????? | | ????####### ##??## ##???????????????? | | ????####### ##??## ##???????????????? | | ?????????## ##??## ##???############? | | ?????????## ##??## #################? | | ?????????## ##??## ####### ##? | | ?????????## ##??## #!!! # """ ##? | | ??????##### ###### #! ! # """ ##? | | ??????#####/###### # ! # """ ##? | | ??????## T # # + ##? | | ??????## # # #""" ##? | | ??????## + + #"R ##? | | ??????## * # # =#""" ##? | | ??????############ ####### ##? | | ??????########### * #######+########? | | ????????#########* = * ####? | | ????????######### * ##??? | | ? =!!########## ##??? | | ???? ####################### ##??? | | ??????? ###############?####### ##??? | | ???????????????????############ ##??? | | ???????????????????####### #### ##??? | | ???????????????????## g ##??? | | ???????????????????##= @ # ##??? | | ???????????????????## # ##??? | | ???????????????????## #####??? | | ???????????????????## =! "" #####??? | | ???????????????????## = T" ##?????? | | ???????????????????## ! "" ##?????? | | ???????????????????## * ##?????? | | ???????????????????#############?????? | | ???????????????????#############?????? | | ?????????????????????????????????????? | | ?????????????????????????????????????? | | ?????????????????????????????????????? | | ?????????????????????????????????????? | | ?????????????????????????????????????? | | | | | | | | | | | | | | | | | | | | | | | +----------------------------------------------------+ Best States ------------- Heat Dissipation 31 Energy Generation 14 Energy Capacity 280 Matter Stores 300 Matter Capacity 300 Sight Range 18 Terrain Scan Density 10 ECM Strength 1 Armor Coverage 80 Utility Shielding 66 Evasion (%) 54 Targeting Accuracy 16 Item Schematics ----------------- None Robot Schematics ------------------ None Fabricated ------------ Nothing Repaired ---------- Hover Unit | 3% | -9/Materials Hover Unit | 33% | -9/Materials ECM Suite | 50% | -8/Materials Studied --------- None Alien Tech Used ----------------- None Achievements -------------- None Challenges ------------ None Game ------ Seed CouplerSubdwellerSink Manual? 0 Play Time 00:27:49 Cumulative 11.9 hours Start 2026.07.17 @ 17:03:28 End 2026.07.17 @ 17:29:50 Sessions 1 Manual Loads 0 Difficulty Rogue Special Mode None Game No. 30 Rogue 30 Adventurer 0 Explorer 0 Win Type - Total 0 Types 0/0/0/0/0/0/0/0/0/0 Lore% 15 Gallery% 13 Achievement% 13 Wizard Run 0 Options --------- Layout 1 ASCII 0 Keyboard 1 Movement Arrows Keybinds 0 Fullscreen 1 Font 36/SmallcapsGlow++ Map View 53x45 Zoom Use 0% Tactical HUD 0 Map Filters NONE Filters NONE Steam 1 RUN: 825b912a-ddf1-478e-834c-159857e6aadd